bitfinex/quotes_ETHUSD_20240530
["timestamp","ask_amount","ask_price","bid_price","bid_amount"]
[1717067706708,3.159582,3753.5,3752.7,1.36216582]
[1717067707740,2.66462,3752.9,3752.7,0.0642736]
[1717067707945,2.82909058,3752.8,3752.7,0.0642736]
[1717067708244,5.2587,3752.7,3751.3,7.38]
[1717067708537,2.66546,3751.7,3751.4,0.05798631]
[1717067708712,0.461146,3751.6,3751.4,0.05798631]
[1717067708912,0.461146,3751.6,3750.6,2.66617]
[1717067709143,2.66584,3751.2,3750.7,0.05815973]
[1717067709649,2.66584,3751.2,3750.7,1.29789222]
[1717067709851,2.66555,3751.6,3750.8,1.35602712]
[1717067710025,2.66497,3752.4,3751.0,3.96382222]
[1717067710354,2.66497,3752.4,3751.1,0.05806041]
[1717067710656,2.66497,3752.4,3751.2,1.29789222]
[1717067710825,2.66497,3752.4,3751.3,0.05801075]
[1717067711017,2.66497,3752.4,3751.4,1.29789222]
[1717067711324,2.66497,3752.4,3751.4,1.35587814]
[1717067714379,2.66497,3752.4,3751.5,2.66556]
[1717067714684,2.66497,3752.4,3751.6,1.35584259]
[1717067718486,2.66469,3752.8,3751.7,2.6654]
[1717067718651,2.66469,3752.8,3751.8,1.35609185]
[1717067719983,2.66469,3752.8,3751.9,2.6653]
[1717067720135,2.66469,3752.8,3752.0,1.29789222]
[1717067720342,2.66436,3753.3,3752.2,2.66507]
[1717067720681,2.66436,3753.3,3752.3,1.35580701]
[1717067721281,2.66436,3753.3,3752.4,2.66492]
[1717067721499,2.66436,3753.3,3752.5,1.29789222]
[1717067721807,2.66436,3753.3,3752.5,1.35575457]
[1717067721943,3.47427491,3753.3,3752.5,1.35575457]
[1717067724673,2.66454,3753.0,3752.5,1.35575457]
[1717067731154,2.66431,3753.4,3752.6,2.3119]
[1717067731460,2.66431,3753.4,3752.7,1.35547368]
[1717067735906,2.930741,3753.4,3752.7,1.35547368]
[1717067739362,2.66431,3753.4,3752.7,1.35547368]
[1717067745471,2.2613,3753.6,3752.7,0.05758146]
[1717067745674,2.66461,3752.9,3752.7,0.05758146]
[1717067745975,2.6648,3752.7,3752.2,7.38]
[1717067747232,2.66494,3752.5,3752.2,7.38]
[1717067747572,2.66494,3752.5,3751.7,21.7709]
[1717067747868,2.66494,3752.5,3751.8,1.29789222]
[1717067748532,2.66509,3752.3,3751.8,1.29789222]
[1717067751833,2.66509,3752.3,3751.9,0.05792099]
[1717067753555,2.66524,3752.1,3751.9,0.05792099]
[1717067754767,0.06663495,3752.0,3751.9,0.05792099]
[1717067754968,2.931764,3752.1,3751.9,0.05792099]
[1717067755172,2.66541,3751.8,3751.2,19.74]
[1717067755356,0.266524,3752.1,3750.9,2.25]
[1717067755687,2.66559,3751.6,3751.0,1.35603663]
[1717067756981,2.66532,3751.9,3751.1,2.3918]
[1717067757185,2.66532,3751.9,3751.2,3.96366222]
[1717067757346,2.66532,3751.9,3751.2,4.02175697]
[1717067758816,2.66492,3752.5,3751.2,1.35598697]
[1717067758997,2.66543,3751.8,3751.2,1.35598697]
[1717067759790,2.66559,3751.6,3751.2,0.05809475]
[1717067760196,2.66559,3751.6,3750.8,2.66609]
[1717067760384,2.66559,3751.6,3751.3,0.05831526]
[1717067760698,2.66559,3751.6,3750.9,1.29789222]
[1717067760865,2.66559,3751.6,3751.4,0.05829043]
[1717067761060,2.66559,3751.6,3751.4,1.29789222]
[1717067761402,2.66559,3751.6,3751.5,0.05826561]
[1717067761600,2.932149,3751.6,3751.5,0.05826561]
[1717067761772,2.932149,3751.6,3750.8,2.66609]
[1717067761960,2.66571,3751.4,3750.9,1.29789222]
[1717067762156,2.3944,3751.9,3751.0,0.05838974]
[1717067762157,2.66587,3751.2,3751.0,0.05838974]
[1717067762361,2.66587,3751.2,3750.7,7.38]
[1717067762562,2.66587,3751.2,3750.7,8.67789222]
[1717067762893,2.66587,3751.2,3750.8,0.05853251]
[1717067763198,2.66587,3751.2,3750.7,8.67789222]
[1717067763360,2.66601,3751.0,3750.9,0.05874748]
[1717067763696,2.66601,3751.0,3750.8,0.05877231]
[1717067763900,2.66601,3751.0,3750.9,0.05874748]
[1717067764266,2.932611,3751.0,3750.2,7.38]
[1717067764489,2.66615,3750.8,3750.3,1.29789222]
[1717067765264,2.66615,3750.8,3749.9,2.3286]
[1717067765478,2.66615,3750.8,3750.1,1.29789222]
[1717067765682,2.66615,3750.8,3750.1,3.96447222]
[1717067766873,2.66615,3750.8,3750.2,0.05912699]
[1717067767077,2.66615,3750.8,3750.3,1.29789222]
[1717067767389,2.66615,3750.8,3750.4,0.05907731]
[1717067767575,2.66615,3750.8,3750.5,1.29789222]
[1717067768104,2.66615,3750.8,3750.6,0.05902764]
[1717067769795,2.66588,3751.2,3750.7,1.29789222]
[1717067770203,2.66588,3751.2,3750.8,0.0589949]
[1717067770727,2.66588,3751.2,3750.8,1.29789222]
[1717067770861,2.66588,3751.2,3750.9,1.35681149]
[1717067771511,2.66559,3751.6,3750.9,1.35681149]
[1717067772228,3.007482,3752.4,3750.9,4.02282149]
[1717067772229,2.6653,3752.0,3750.9,4.02282149]
[1717067773573,2.6653,3752.0,3751.1,2.66581]
[1717067773924,2.66502,3752.4,3751.2,3.63145361]
[1717067774900,2.66502,3752.4,3751.3,2.66572]
[1717067775169,2.66502,3752.4,3751.4,1.35650114]
[1717067776605,2.66502,3752.4,3751.5,2.66558]
[1717067776920,5.07496,3752.9,3751.5,1.29789222]
[1717067777136,5.07496,3752.9,3751.6,0.05855927]
[1717067777273,5.07496,3752.9,3751.8,2.66531]
[1717067777471,5.07496,3752.9,3751.9,1.29789222]
[1717067777674,5.07496,3752.9,3752.0,2.66524]
[1717067777980,5.07496,3752.9,3752.1,1.35590991]
[1717067778219,3.172156,3752.9,3752.1,1.35590991]
[1717067778511,2.66466,3752.9,3752.1,1.35590991]
[1717067779980,2.66483,3752.6,3752.1,1.35590991]
[1717067780179,0.06662983,3752.5,3752.1,0.05801769]
[1717067780586,2.66522,3752.1,3751.2,10.04576]
[1717067780787,2.66522,3752.1,3751.3,1.29789222]
[1717067781093,2.66522,3752.1,3751.3,1.35602106]
[1717067781297,2.931742,3752.1,3751.3,1.35602106]
[1717067782715,2.66534,3751.9,3751.3,1.35602106]
[1717067783035,2.66554,3751.6,3751.3,0.05812884]
[1717067783522,2.66554,3751.6,3750.8,10.04605]
[1717067783826,2.66554,3751.6,3750.9,1.29789222]
[1717067784001,2.66554,3751.6,3750.9,1.35612037]
[1717067784746,2.6657,3751.4,3750.9,1.35612037]
[1717067785042,2.6657,3751.4,3750.9,0.05822815]
[1717067786531,2.6657,3751.4,3750.4,2.66632]
[1717067786865,2.6657,3751.4,3750.5,1.35647638]
[1717067787573,2.6657,3751.4,3750.6,2.66623]
[1717067787877,2.6657,3751.4,3750.7,1.35659594]
[1717067788242,2.66543,3751.8,3750.8,2.66604]
[1717067788578,2.66543,3751.8,3751.0,2.3853]
[1717067788878,2.66543,3751.8,3751.1,1.35647122]
[1717067789828,2.66512,3752.2,3751.1,4.02235122]
[1717067792449,4.98792,3752.2,3751.1,4.02235122]
[1717067792679,2.66533,3751.9,3751.1,4.02235122]
[1717067794691,4.767592,3752.2,3751.1,0.058579]
[1717067794867,3.55,3752.1,3751.1,0.058579]
[1717067795265,3.55,3752.1,3750.9,7.38]
[1717067795266,2.66561,3751.5,3750.9,7.38]
[1717067795572,2.66561,3751.5,3751.0,0.05856152]
[1717067795795,2.66561,3751.5,3750.9,8.67789222]
[1717067795979,2.66561,3751.5,3751.1,0.05853669]
[1717067796183,2.66561,3751.5,3750.9,8.67789222]
[1717067796380,2.66561,3751.5,3751.2,0.05851186]
[1717067796583,2.66561,3751.5,3750.9,8.67789222]
[1717067796778,2.66535,3751.9,3751.0,1.35645374]
[1717067796995,2.66535,3751.9,3751.1,2.4276]
[1717067797304,2.66535,3751.9,3751.2,1.29789222]
[1717067797508,2.66535,3751.9,3751.2,1.35640408]
[1717067802181,2.66551,3751.7,3751.2,1.35640408]
[1717067804129,2.66561,3751.5,3751.2,0.05851186]
[1717067804424,2.66561,3751.5,3750.9,7.38]
[1717067804717,2.66582,3751.2,3750.9,7.38]
[1717067804920,2.66582,3751.2,3750.5,2.3773]
[1717067805217,2.66582,3751.2,3750.6,1.29789222]
[1717067807027,2.66582,3751.2,3750.5,2.3773]
[1717067807028,2.66582,3751.2,3750.7,1.29789222]
[1717067809230,2.66559,3751.6,3750.7,1.29789222]
[1717067811902,2.66559,3751.6,3750.8,0.05874379]
[1717067812102,2.66559,3751.6,3750.9,1.29789222]
[1717067812627,2.66559,3751.6,3751.0,0.05869412]
[1717067812824,2.66559,3751.6,3751.1,1.29789222]
[1717067813230,2.66559,3751.6,3751.2,0.05864446]
[1717067816429,3.47759,3751.6,3751.2,0.05864446]
[1717067821015,2.66559,3751.6,3751.3,1.29789222]
[1717067821516,2.66559,3751.6,3751.4,0.05865405]
[1717067821919,0.812,3751.5,3751.4,0.05865405]
[1717067824135,2.6657,3751.4,3750.6,2.66622]
[1717067824299,3.47787,3751.2,3750.6,1.29789222]
[1717067824504,3.47787,3751.2,3750.7,0.05878272]
[1717067827253,2.66596,3751.0,3750.7,0.05878272]
[1717067827406,3.47796,3751.0,3750.7,0.05878272]
[1717067827606,2.66615,3750.8,3750.3,7.38]
[1717067827824,2.66615,3750.8,3750.4,1.29789222]
[1717067832037,0.812,3750.7,3750.4,1.29789222]
[1717067833656,2.66615,3750.8,3750.4,1.29789222]
[1717067834853,2.66629,3750.6,3749.8,9.6859]
[1717067835057,0.812,3750.5,3749.9,1.29789222]
[1717067835257,0.812,3750.7,3749.9,1.29789222]
[1717067836922,2.66631,3750.5,3749.9,1.29789222]
[1717067841322,5.02241,3750.5,3749.8,7.38]
[1717067841527,2.66649,3750.3,3749.8,7.38]
[1717067841868,2.66649,3750.3,3749.9,0.05911124]
[1717067844079,2.66659,3750.1,3749.9,0.05911124]
[1717067844430,2.66659,3750.1,3749.3,9.6833]
[1717067844600,2.66659,3750.1,3749.4,1.29789222]
[1717067844601,0.57697666,3750.0,3749.4,1.29789222]
[1717067844894,0.57697666,3750.0,3749.3,9.6833]
[1717067844895,2.66659,3750.1,3749.3,7.38]
[1717067845036,2.66659,3750.1,3749.3,9.48989222]
[1717067845237,2.66659,3750.1,3749.3,8.67789222]
[1717067845474,3.47859,3750.1,3749.3,8.67789222]
[1717067848074,2.66695,3749.6,3748.7,7.38]
[1717067848261,2.66695,3749.6,3748.8,1.29789222]
[1717067848262,0.812,3749.5,3748.8,1.29789222]
[1717067848860,2.66695,3749.6,3748.8,1.29789222]
[1717067850148,2.66695,3749.6,3748.9,3.57259222]
[1717067850590,2.66695,3749.6,3748.7,8.192]
[1717067850905,0.812,3749.4,3748.8,1.29789222]
[1717067851083,3.47916,3749.4,3748.8,1.29789222]
[1717067851953,2.66716,3749.4,3748.8,1.29789222]
[1717067852763,2.3777,3749.3,3748.7,7.38]
[1717067852984,2.3777,3749.3,3748.7,8.67789222]
[1717067853366,2.3777,3749.3,3749.2,0.812]
[1717067853698,2.66716,3749.4,3749.2,0.812]
[1717067854571,2.66716,3749.4,3748.7,11.14039222]
[1717067854776,2.66716,3749.4,3749.3,0.812]
[1717067856816,2.66716,3749.4,3749.3,0.87116894]
[1717067857179,2.66686,3749.8,3749.3,2.16906116]
[1717067857381,2.66686,3749.8,3749.6,0.812]
[1717067857768,2.66686,3749.8,3749.7,0.05906953]
[1717067863036,2.6666,3750.1,3749.7,1.35696175]
[1717067863239,0.5769901,3750.0,3749.9,0.812]
[1717067863422,2.6666,3750.1,3749.9,0.87101984]
[1717067864114,2.66638,3750.4,3749.9,0.87101984]
[1717067864315,0.57693854,3750.3,3750.1,0.812]
[1717067864731,0.57693854,3750.3,3750.2,0.05933763]
[1717067865637,2.66638,3750.4,3750.2,0.05933763]
[1717067866144,2.66638,3750.4,3750.3,0.812]
[1717067866438,2.66638,3750.4,3750.3,0.87131279]
[1717067866794,3.24327181,3750.4,3750.3,0.87131279]
[1717067867496,2.66638,3750.4,3750.3,0.87131279]
[1717067867833,2.66612,3750.8,3750.3,2.16920501]
[1717067868034,3.0,3751.1,3750.3,0.05931279]
[1717067868035,2.66625,3750.6,3750.3,0.05931279]
[1717067868239,0.57689546,3750.5,3750.4,0.812]
[1717067868439,0.57689546,3750.5,3750.4,0.87128795]
[1717067869794,0.57689546,3750.5,3750.4,0.05928795]
[1717067870153,2.66638,3750.4,3750.2,0.812]
[1717067870866,2.66638,3750.4,3749.6,7.38]
[1717067871077,2.66638,3750.4,3750.2,0.812]
[1717067871400,0.57691365,3750.3,3749.7,1.29789222]
[1717067871698,2.66653,3750.2,3750.1,0.812]
[1717067872298,2.66653,3750.2,3750.1,0.8712806]
[1717067873707,2.66653,3750.2,3750.1,0.0592806]
[1717067874209,2.66672,3750.0,3749.6,7.38]
[1717067874381,2.6668,3749.8,3749.4,0.812]
[1717067875108,2.6668,3749.8,3749.1,7.38]
[1717067875267,2.6668,3749.8,3749.4,0.812]
[1717067876122,2.6668,3749.8,3749.3,0.812]
[1717067876316,2.66704,3749.5,3749.3,0.812]
[1717067876609,2.66704,3749.5,3748.7,12.36]
[1717067876610,2.66704,3749.5,3748.7,19.74]
[1717067876813,2.66704,3749.5,3748.8,1.29789222]
[1717067877115,2.66704,3749.5,3748.7,7.38]
[1717067877409,2.66716,3749.3,3749.1,0.812]
[1717067877624,2.66716,3749.3,3748.7,7.38]
[1717067877774,0.06668971,3749.2,3748.9,0.812]
[1717067877969,2.66716,3749.3,3748.9,0.812]
[1717067878510,2.6673,3749.1,3748.7,7.38]
[1717067878810,2.6673,3749.1,3748.8,0.812]
[1717067879110,2.6673,3749.1,3748.7,7.38]
[1717067879311,2.6673,3749.1,3748.9,0.812]
[1717067879612,2.66707,3749.5,3748.9,2.10989222]
[1717067879909,2.66707,3749.5,3749.4,0.812]
[1717067880512,2.66707,3749.5,3749.3,0.812]
[1717067880915,2.66707,3749.5,3748.7,7.38]
[1717067881214,2.66707,3749.5,3749.2,0.812]
[1717067881710,2.66707,3749.5,3749.4,0.812]
[1717067881870,3.24413191,3749.5,3749.4,0.812]
[1717067882790,2.66707,3749.5,3749.4,0.86980655]
[1717067883293,2.66679,3749.9,3749.4,0.86980655]
[1717067883469,2.66679,3749.9,3749.7,0.812]
[1717067883470,0.57700538,3749.8,3749.7,0.812]
[1717067883669,0.57700538,3749.8,3749.7,0.869732]
[1717067884010,2.66651,3750.3,3749.7,2.16762422]
[1717067884207,0.57696314,3750.2,3749.8,1.29789222]
[1717067884380,0.57696314,3750.6,3750.1,0.812]
[1717067884717,1.14275145,3750.6,3750.3,0.812]
[1717067885274,1.14275145,3750.6,3750.4,0.05752421]
[1717067885987,2.66631,3750.5,3750.4,0.05752421]
[1717067886190,3.24327314,3750.5,3750.4,0.05752421]
[1717067888025,0.57696314,3750.5,3750.4,0.05752421]
[1717067888221,0.576886,3750.8,3750.4,0.05752421]
[1717067888420,0.576886,3750.8,3750.5,0.812]
[1717067888724,0.576886,3750.8,3750.6,0.05747454]
[1717067890674,0.576886,3750.8,3750.7,0.812]
[1717067890877,2.6658,3751.3,3750.7,0.8692182]
[1717067891211,0.57682909,3751.2,3751.0,0.812]
[1717067891814,0.57682909,3751.2,3751.1,0.05711887]
[1717067892446,0.57682909,3751.2,3750.6,0.812]
[1717067892447,2.66594,3751.1,3750.6,0.812]
[1717067893031,2.66603,3750.9,3750.4,8.192]
[1717067893193,2.66625,3750.6,3750.4,7.38]
[1717067894657,2.66625,3750.6,3750.2,0.812]
[1717067894938,0.57691652,3750.5,3750.2,0.812]
[1717067895296,2.66638,3750.4,3749.8,7.38]
[1717067895498,2.66638,3750.4,3750.2,0.812]
[1717067897652,2.66638,3750.4,3749.9,1.29789222]
[1717067897800,2.66638,3750.4,3750.2,0.812]
[1717067900546,2.4203,3750.8,3750.2,0.812]
[1717067900547,2.66616,3750.8,3750.2,0.812]
[1717067900722,2.66616,3750.8,3749.9,3.96461222]
[1717067900723,0.57689832,3750.7,3750.3,3.78079222]
[1717067900920,0.57689832,3750.7,3750.6,0.812]
[1717067901128,2.66616,3750.8,3750.6,0.812]
[1717067901807,2.66616,3750.8,3750.7,0.05713346]
[1717067902209,2.66616,3750.8,3750.6,0.812]
[1717067902425,2.66616,3750.8,3750.7,0.05713346]
[1717067904670,2.66616,3750.8,3750.5,0.812]
[1717067904947,2.66616,3750.8,3750.6,0.05715829]
[1717067909259,0.57687154,3750.7,3750.6,0.05715829]
[1717067910761,0.57687246,3750.7,3750.6,0.05715829]
[1717067914865,0.57687246,3750.7,3750.5,0.812]
[1717067915032,0.57687246,3750.7,3750.6,0.05711596]
[1717067917034,0.90117571,3750.7,3750.6,0.05711596]
[1717067917385,0.96783901,3750.7,3750.6,0.812]
[1717067917551,0.90117571,3750.7,3750.6,0.812]
[1717067917753,0.90117571,3750.7,3750.6,0.86911596]
[1717067919271,0.90117571,3750.7,3750.6,0.05711596]
[1717067919473,0.90117571,3750.7,3750.6,0.86911596]
[1717067919661,0.90117571,3750.7,3750.6,0.812]
[1717067919864,0.90117571,3750.7,3750.6,0.86911596]
[1717067921273,0.57687246,3750.7,3750.6,0.86911596]
[1717067923493,0.57687246,3751.0,3750.6,0.86911596]
[1717067923786,0.57687246,3751.0,3750.9,0.812]
[1717067924286,0.57687246,3751.0,3750.9,0.86900194]
[1717067928461,0.90114771,3751.0,3750.9,0.05700194]
[1717067928861,2.66602,3750.9,3750.8,0.812]
[1717067929304,3.24289246,3750.9,3750.8,0.86889693]
[1717067931129,3.24289246,3750.9,3750.8,0.05689693]
[1717067931307,3.24289246,3750.9,3750.8,0.812]
[1717067931514,3.59960923,3750.9,3750.8,0.86889693]
[1717067935134,3.59960923,3750.9,3750.8,0.05689693]
[1717067935310,3.59960923,3750.9,3750.8,0.812]
[1717067935637,3.59960923,3750.9,3750.8,0.86896185]
[1717067940646,6.05650923,3750.9,3750.8,0.05696185]
[1717067941050,6.05650923,3750.9,3750.7,0.812]
[1717067941241,2.66645,3750.3,3750.2,7.38]
[1717067941549,2.66645,3750.3,3750.2,8.192]
[1717067941857,3.24332246,3750.3,3750.2,8.192]
[1717067944329,0.57687246,3750.3,3750.2,8.192]
[1717067944502,0.57687246,3750.5,3750.2,0.812]
[1717067944726,0.57687246,3750.5,3750.4,0.812]
[1717067946454,0.57687246,3750.5,3750.4,0.86915434]
[1717067947976,0.57687246,3750.5,3750.4,0.812]
[1717067948274,0.90118571,3750.5,3750.4,0.812]
[1717067948813,2.66652,3750.2,3749.5,7.38]
[1717067949066,2.66652,3750.2,3750.1,0.812]
[1717067949215,3.24346352,3750.2,3750.1,0.812]
[1717067949415,3.24346352,3750.2,3750.1,0.86927967]
[1717067950156,3.24346352,3750.2,3750.1,0.05727967]
[1717067950357,3.81624987,3750.2,3750.0,0.812]
[1717067950657,2.66686,3749.8,3749.5,7.38]
[1717067950811,2.66686,3749.8,3749.7,0.812]
[1717067951016,3.24388353,3749.8,3749.7,0.812]
[1717067951844,3.56827188,3749.8,3749.7,0.812]
[1717067952151,2.66708,3749.5,3748.9,7.38]
[1717067952356,2.66708,3749.5,3749.4,0.812]
[1717067953157,3.24410974,3749.5,3749.0,20.75789222]
[1717067953335,2.66708,3749.5,3749.4,0.812]
[1717067953534,2.66708,3749.5,3749.0,20.75789222]
[1717067953718,2.66723,3749.3,3748.9,7.38]
[1717067953923,2.66723,3749.3,3749.2,0.812]
[1717067954455,2.933953,3749.3,3748.9,7.38]
[1717067954669,2.933953,3749.3,3748.9,8.192]
[1717067954670,2.6673,3749.1,3748.9,8.192]
[1717067955166,0.57709927,3749.0,3748.9,8.192]
[1717067955367,0.57709927,3749.0,3748.9,0.812]
[1717067955547,2.66754,3748.8,3748.2,7.38]
[1717067955867,0.57709927,3748.7,3748.2,7.38]
[1717067956069,0.57709927,3748.7,3748.6,0.812]
[1717067956366,2.66754,3748.8,3748.6,0.812]
[1717067957769,2.66775,3748.5,3748.2,7.38]
[1717067957964,2.66775,3748.5,3748.4,0.812]
[1717067961739,2.66775,3748.5,3748.4,0.87100159]
[1717067967203,2.66775,3748.5,3748.4,0.05900159]
[1717067967366,2.66775,3748.5,3747.7,7.38]
[1717067967367,3.160885,3748.5,3748.2,0.812]
[1717067967579,3.160885,3748.5,3748.4,0.05898463]
[1717067967778,3.160885,3748.5,3748.2,0.812]
[1717067968118,2.66787,3748.3,3748.2,0.812]
[1717067968866,2.66811,3748.0,3747.7,7.38]
[1717067969194,2.66811,3748.0,3747.9,0.812]
[1717067970408,2.66811,3748.0,3747.3,21.7796]
[1717067970572,2.66811,3748.0,3747.9,0.812]
[1717067975520,2.66788,3748.3,3747.9,3.0666]
[1717067975723,2.66788,3748.3,3748.2,0.812]
[1717067975890,2.66788,3748.3,3747.3,3.55249222]
[1717067975891,2.66808,3748.1,3747.3,3.55249222]
[1717067976227,2.66808,3748.1,3748.0,0.812]
[1717067976408,2.66808,3748.1,3747.4,1.35718777]
[1717067976626,2.66808,3748.1,3748.0,0.0591463]
[1717067976931,2.66808,3748.1,3747.4,3.64839222]
[1717067977147,2.66808,3748.1,3748.0,0.8711463]
[1717067977300,2.66808,3748.1,3748.0,0.812]
[1717067977710,2.66808,3748.1,3748.0,0.8711463]
[1717067980222,3.24538449,3748.1,3748.0,0.8711463]
[1717067980889,3.24538449,3748.1,3748.0,0.0591463]
[1717067981115,2.66808,3748.1,3748.0,0.8711463]
[1717067981301,2.66808,3748.1,3748.0,0.812]
[1717067981500,3.24538652,3748.1,3748.0,0.87119166]
[1717067983031,0.57730652,3748.1,3748.0,3.25559166]
[1717067983188,0.57730652,3748.3,3748.0,3.25559166]
[1717067983393,2.66794,3748.2,3747.4,2.66845]
[1717067983712,2.66794,3748.2,3748.1,0.87116679]
[1717067984830,3.24517167,3748.2,3748.1,0.87116679]
[1717067986323,3.56968884,3748.2,3748.1,0.05916679]
[1717067986528,3.56968884,3748.2,3748.1,0.87116679]
[1717067986712,3.56968884,3748.2,3748.1,0.812]
[1717067989442,3.56968884,3748.2,3747.3,2.3844]
[1717067989603,2.66794,3748.2,3748.1,0.8710933]
[1717067989805,3.24525087,3748.2,3748.1,0.812]
[1717067991312,0.57731087,3748.2,3748.1,2.10989222]
[1717067991507,0.57731087,3748.9,3748.1,7.17207552]
[1717067991802,0.57731087,3748.9,3748.8,0.812]
[1717067992008,1.13481596,3748.9,3748.8,0.812]
[1717067992829,2.66761,3748.7,3748.1,2.3351]
[1717067993148,2.66761,3748.7,3748.6,0.812]
[1717067993641,3.24482191,3748.7,3748.6,0.812]
[1717067994440,2.66785,3748.4,3747.8,7.38]
[1717067994642,2.66794,3748.2,3748.1,0.812]
[1717067994945,3.24515191,3748.2,3748.1,0.812]
[1717067995313,3.24515191,3748.2,3747.4,7.38]
[1717067995314,2.66815,3748.0,3747.4,7.38]
[1717067995523,0.57721191,3747.9,3747.7,0.812]
[1717067999833,0.57721191,3748.2,3747.7,0.812]
[1717068000020,0.57721191,3748.2,3748.1,0.812]
[1717068000631,0.57721191,3748.2,3748.1,0.86894453]
[1717068001151,0.57721191,3748.2,3748.1,0.05694453]
[1717068001304,0.9017211,3748.2,3748.1,0.05694453]
[1717068001508,0.9017211,3748.2,3747.8,0.812]
[1717068001509,2.66803,3748.1,3747.8,0.812]
[1717068001712,0.57721191,3748.0,3747.8,0.812]
[1717068002358,2.66816,3747.9,3747.8,0.812]
[1717068002572,3.24550384,3747.9,3747.8,0.812]
[1717068004957,0.57734384,3747.9,3747.8,0.812]
[1717068005287,0.57734384,3748.1,3747.8,2.16513709]
[1717068005414,0.57734384,3748.4,3748.0,0.812]
[1717068005613,0.57734384,3748.4,3747.8,1.35313709]
[1717068005614,0.57734384,3748.4,3748.3,0.812]
[1717068006157,0.57734384,3748.4,3748.3,0.86712052]
[1717068007932,2.66751,3748.9,3748.3,0.86712052]
[1717068008151,0.57721375,3748.8,3748.3,0.05512052]
[1717068008322,0.57721375,3748.8,3748.7,0.812]
[1717068011565,2.66751,3748.9,3748.7,0.812]
[1717068011752,0.57720583,3748.8,3748.7,0.812]
[1717068012135,0.57720583,3748.8,3748.7,0.86702106]
[1717068014264,2.66737,3749.1,3748.7,0.86702106]
[1717068014450,2.66737,3749.1,3748.9,0.812]
[1717068014766,0.57720583,3749.0,3748.9,0.812]
[1717068014919,0.90166341,3749.0,3748.9,0.812]
[1717068015128,5.15292,3748.8,3748.1,7.38]
[1717068015329,2.66774,3748.5,3748.1,7.38]
[1717068015529,0.57720583,3748.4,3748.3,0.812]
[1717068015976,0.57720583,3748.4,3748.3,0.8667798]
[1717068016147,0.90170041,3748.4,3748.3,0.0547798]
[1717068016346,0.90170041,3748.4,3748.3,0.8667798]
[1717068016561,0.90170041,3748.4,3748.3,0.812]
[1717068016761,0.90170041,3748.4,3748.3,0.8667798]
[1717068019477,0.57720583,3748.4,3748.3,0.8667798]
[1717068020571,0.57720583,3748.4,3748.3,0.0547798]
[1717068020773,2.66787,3748.3,3748.2,0.812]
[1717068020968,3.24507583,3748.3,3748.2,0.86693138]
[1717068024714,3.24507583,3748.3,3748.2,0.05493138]
[1717068024919,3.56958341,3748.3,3748.2,0.05493138]
[1717068025139,3.56958341,3748.3,3748.0,0.812]
[1717068025355,2.99237758,3748.3,3748.2,0.05503273]
[1717068025495,5.88357936,3748.3,3748.1,0.0550576]
[1717068025691,2.66801,3748.1,3748.0,0.812]
[1717068026044,2.66822,3747.9,3747.6,7.38]
[1717068026191,2.66822,3747.9,3747.8,0.812]
[1717068026391,2.66822,3747.9,3747.6,7.38]
[1717068026613,0.57732412,3747.8,3747.7,0.812]
[1717068031036,2.6684,3747.6,3747.0,7.38]
[1717068031341,2.6684,3747.6,3747.5,0.812]
[1717068031556,3.24578468,3747.6,3746.9,2.66886]
[1717068031750,2.6684,3747.6,3747.5,0.812]
[1717068032729,3.24578137,3747.6,3747.5,0.812]
[1717068036855,3.24578137,3747.6,3747.5,0.90114151]
[1717068037259,3.57035951,3747.6,3747.5,0.90114151]
[1717068042385,3.57035951,3747.6,3747.5,0.08914151]
[1717068042729,3.57035951,3747.6,3747.4,0.812]
[1717068042934,2.99297814,3747.6,3747.5,0.08916122]
[1717068043129,3.57038052,3747.6,3747.5,0.08916122]
[1717068044378,3.57038052,3747.6,3747.4,0.812]
[1717068044535,0.57740238,3747.5,3747.4,0.812]
[1717068046249,1.16768043,3747.5,3746.6,7.38]
[1717068046470,2.6688,3747.0,3746.7,0.08636466]
[1717068046682,2.6688,3747.0,3746.9,0.812]
[1717068046879,2.6688,3747.0,3746.9,0.89633237]
[1717068047045,3.24627415,3747.0,3746.9,0.89633237]
[1717068047390,3.24627415,3747.0,3746.9,0.812]
[1717068047950,3.24627415,3747.0,3746.2,7.38]
[1717068048168,2.6688,3747.0,3746.9,0.812]
[1717068048584,3.24626873,3747.0,3746.9,0.812]
[1717068050454,3.24626873,3747.0,3746.2,8.94703466]
[1717068050793,0.57746873,3746.9,3746.3,2.4336871]
[1717068051263,0.57746339,3746.9,3746.8,0.812]
[1717068051470,0.57746339,3746.9,3746.8,0.89635816]
[1717068056592,0.57746339,3746.9,3746.8,3.34495816]
[1717068057593,0.57746339,3747.3,3746.8,3.34495816]
[1717068057758,0.57746339,3747.3,3747.2,0.812]
[1717068058306,0.57746339,3747.3,3747.2,0.89658369]
[1717068059005,0.57746339,3747.3,3747.2,0.08458369]
[1717068059299,0.57746339,3747.3,3747.2,0.812]
[1717068059478,2.66867,3747.2,3746.8,2.4486]
[1717068059680,0.57746339,3747.1,3746.8,2.4486]
[1717068059887,0.57746339,3747.1,3747.0,0.812]
[1717068060411,0.57746339,3747.1,3746.8,2.4486]
[1717068060566,0.57746339,3747.1,3747.0,0.812]
[1717068060761,0.5238534,3747.1,3747.0,4.42629222]
[1717068060969,2.66802,3748.1,3747.1,4.9851]
[1717068061306,2.66802,3748.1,3748.0,0.812]
[1717068061464,2.934822,3748.1,3748.0,0.812]
[1717068061802,2.66779,3748.5,3748.0,0.812]
[1717068062007,2.6675,3748.9,3748.4,0.812]
[1717068062171,2.6675,3748.9,3748.7,0.812]
[1717068063164,2.66723,3749.3,3748.7,0.812]
[1717068063362,2.66723,3749.3,3749.2,0.812]
[1717068063611,2.933953,3749.3,3749.2,0.812]